fUST/lending_fUST_20260701
["ID","MTS","AMOUNT","RATE_DAILY","PERIOD"]
[426814863,1782874248000,-500.0,0.00029935,2]
[426814864,1782874248000,-295.28650571,0.00029935,2]
[426814860,1782874248000,-328.01810113,0.00029934,2]
[426814861,1782874248000,-32.40922331,0.00029935,2]
[426814859,1782874248000,-478.76973354,0.000299,2]
[426814857,1782874248000,-500.0,0.00029895,2]
[426814858,1782874248000,-328.01810114,0.000299,2]
[426814852,1782874248000,-500.0,0.00029895,2]
[426814851,1782874248000,-500.0,0.00029895,2]
[426814853,1782874248000,-500.0,0.00029895,2]
[426814850,1782874248000,-500.0,0.00029895,2]
[426814854,1782874248000,-500.0,0.00029895,2]
[426814856,1782874248000,-500.0,0.00029895,2]
[426814848,1782874248000,-500.0,0.00029895,2]
[426814855,1782874248000,-548.98842312,0.00029895,2]
[426814847,1782874248000,-500.0,0.00029895,2]
[426814846,1782874248000,-500.0,0.00029895,2]
[426814845,1782874248000,-500.0,0.00029895,2]
[426814844,1782874248000,-500.0,0.00029895,2]
[426814842,1782874248000,-500.0,0.00029895,2]
[426814841,1782874248000,-500.0,0.00029895,2]
[426814849,1782874248000,-500.0,0.00029895,2]
[426814840,1782874248000,-500.0,0.00029895,2]
[426814866,1782874250000,-204.71349429,0.00029935,2]
[426814868,1782874250000,-308.79066263,0.00029935,2]
[426814867,1782874250000,-500.0,0.00029935,2]
[426814877,1782874416000,-507.0,0.00026748,3]
[426814879,1782874478000,158.0,0.0003,30]
[426814885,1782874626000,412.51703359,0.000125,2]
[426814887,1782874678000,988.32933749,0.00029193,120]
[426814888,1782874784000,67730.1,0.0003013,30]
[426814889,1782874948000,-796.2142,0.000243,2]
[426814890,1782874987000,285.0,0.00030137,30]
[426814892,1782875055000,-219.68938314,0.00024384,2]
[426814895,1782875108000,-1271.556,0.000261,2]
[426814896,1782875162000,-1271.556,0.000261,2]
[426814902,1782875215000,-507.0,0.000261,2]
[426814904,1782875226000,-507.0,0.000261,2]
[426814946,1782875432000,-173.2934857,0.00028508,2]
[426814945,1782875432000,-417.87504865,0.00028438,2]
[426814944,1782875432000,-267.70773887,0.00028438,2]
[426814941,1782875432000,-638.3523123,0.00028033,2]
[426814943,1782875432000,-234.24427151,0.00028438,2]
[426814942,1782875432000,-167.15184241,0.00028189,2]
[426814935,1782875432000,-457.921887,0.00027886,2]
[426814936,1782875432000,-310.8403,0.000279,5]
[426814939,1782875432000,-156.09499197,0.00028,2]
[426814938,1782875432000,-1014.33502176,0.00028,2]
[426814937,1782875432000,-211.06378273,0.000279,2]
[426814934,1782875432000,-257.55,0.000261,2]
[426814947,1782875432000,-162.06,0.00028729,2]
[426814940,1782875432000,-151.0,0.00028,2]
[426814949,1782875432000,-162.06,0.00028729,2]
[426814962,1782875432000,-500.0,0.00029496,2]
[426814948,1782875432000,-162.06,0.00028729,2]
[426814965,1782875432000,-500.0,0.00029496,2]
[426814963,1782875432000,-501.43932024,0.00029496,2]
[426814951,1782875432000,-151.0,0.00029,2]
[426814964,1782875432000,-500.0,0.00029496,2]
[426814960,1782875432000,-500.0,0.00029496,2]
[426814959,1782875432000,-500.0,0.00029496,2]
[426814955,1782875432000,-500.0,0.00029496,2]
[426814961,1782875432000,-500.0,0.00029496,2]
[426814958,1782875432000,-500.0,0.00029496,2]
[426814956,1782875432000,-500.0,0.00029496,2]
[426814953,1782875432000,-204.97471822,0.00029496,2]
[426814957,1782875432000,-295.81167092,0.00029496,2]
[426814952,1782875432000,-6151.15261747,0.00029401,2]
[426814950,1782875432000,-162.04262129,0.00028729,2]
[426814954,1782875432000,-500.0,0.00029496,2]
[426814973,1782875433000,-500.0,0.00029496,2]
[426814976,1782875433000,-500.0,0.00029496,2]
[426814975,1782875433000,-500.0,0.00029496,2]
[426814972,1782875433000,-471.6042701,0.00029496,2]
[426814966,1782875433000,-500.0,0.00029496,2]
[426814974,1782875433000,-500.0,0.00029496,2]
[426814969,1782875433000,-500.0,0.00029496,2]
[426814968,1782875433000,-283.2209359,0.00029496,2]
[426814967,1782875433000,-500.0,0.00029496,2]
[426814970,1782875433000,-500.0,0.00029496,2]
[426814971,1782875433000,-500.0,0.00029496,2]
[426814977,1782875433000,-500.0,0.00029496,2]
[426814981,1782875433000,-249.52051372,0.00029496,2]
[426814983,1782875433000,-353.60554162,0.00029496,2]
[426814978,1782875433000,-500.0,0.00029496,2]
[426814982,1782875433000,-250.47948628,0.00029496,2]
[426814979,1782875433000,-500.0,0.00029496,2]
[426814980,1782875433000,-500.0,0.00029496,2]
[426814986,1782875433000,-500.0,0.00029496,2]
[426814987,1782875433000,-500.0,0.00029496,2]
[426814984,1782875433000,-500.0,0.00029496,2]
[426814988,1782875433000,-507.06816964,0.00029496,2]
[426814985,1782875433000,-500.0,0.00029496,2]
[426814989,1782875433000,-500.0,0.00029496,2]
[426814991,1782875433000,-65.20448313,0.00029496,2]
[426814990,1782875433000,-500.0,0.00029496,2]
[426815020,1782875439000,-434.79551687,0.00029496,2]
[426815021,1782875439000,-295.04260508,0.00029496,2]
[426815022,1782875439000,-204.95739492,0.00029496,2]
[426815023,1782875439000,-513.48074867,0.000295,2]
[426815117,1782875447000,-2834.6817186,0.000295,2]
[426815138,1782875791000,492.59013879,0.00030137,30]
[426815140,1782875865000,-151.0,0.0002425,2]
[426815142,1782875919000,-151.0,0.00023523,2]
[426815145,1782875972000,-507.0,0.000261,2]
[426815158,1782876289000,-1667.58,0.00025,2]
[426815160,1782876300000,603.0,0.0003,30]
[426815159,1782876300000,-500.0,0.00025,2]
[426815162,1782876310000,-1.32001005,0.00025,2]
[426815163,1782876347000,385.73031549,0.0001,28]
[426815166,1782876364000,-169.0,0.00026074,2]
[426815212,1782876632000,-111.57557951,0.00028209,2]
[426815213,1782876632000,-388.42442049,0.00028209,2]
[426815201,1782876632000,-426.01010516,0.00025633,2]
[426815200,1782876632000,-203.19089965,0.00025633,2]
[426815211,1782876632000,-500.0,0.00028209,2]
[426815203,1782876632000,-362.8183,0.000261,3]
[426815202,1782876632000,-411.8285,0.000261,2]
[426815207,1782876632000,-701.0,0.00028,2]
[426815205,1782876632000,-172.3214525,0.00026896,2]
[426815206,1782876632000,-151.0,0.00028,2]
[426815209,1782876632000,-250.0,0.00028147,2]
[426815208,1782876632000,-1002.39261934,0.00028,2]
[426815210,1782876632000,-462.4750757,0.00028209,2]
[426815214,1782876632000,-446.87228101,0.00028209,2]
[426815215,1782876632000,-1037.39352809,0.0002821,2]
[426815204,1782876632000,-228.960944,0.00026818,2]
[426815283,1782876638000,-500.0,0.00028309,2]
[426815287,1782876638000,-357915.31129392,0.0002831,2]
[426815291,1782876638000,-151.0,0.0002831,7]
[426815295,1782876638000,-315.85,0.0002831,7]
[426815293,1782876638000,-315.85,0.0002831,7]
[426815294,1782876638000,-315.85,0.0002831,7]
[426815292,1782876638000,-315.85,0.0002831,7]
[426815302,1782876638000,-163.9,0.00028887,2]
[426815300,1782876638000,-829.28772967,0.00028402,2]
[426815301,1782876638000,-1294.46631553,0.00028402,2]
[426815296,1782876638000,-381.10422369,0.00028402,2]
[426815298,1782876638000,-1903.61559735,0.00028402,2]
[426815299,1782876638000,-259.15241552,0.00028402,2]
[426815315,1782876638000,-151.0,0.000295,7]
[426815313,1782876638000,-151.0,0.000295,7]
[426815286,1782876638000,-2000.0,0.00028309,2]
[426815297,1782876638000,-1219.53351582,0.00028402,2]
[426815284,1782876638000,-336.48431562,0.00028309,2]
[426815314,1782876638000,-151.0,0.000295,7]
[426815282,1782876638000,-500.0,0.00028309,2]
[426815269,1782876638000,-472.55706008,0.0002821,2]
[426815268,1782876638000,-448.45207154,0.0002821,2]
[426815270,1782876638000,-364.11,0.000283,3]
[426815271,1782876638000,-182.05,0.000283,3]
[426815272,1782876638000,-546.2,0.000283,3]
[426815273,1782876638000,-191.04979056,0.00028309,2]
[426815277,1782876638000,-500.0,0.00028309,2]
[426815275,1782876638000,-500.0,0.00028309,2]
[426815276,1782876638000,-500.0,0.00028309,2]
[426815274,1782876638000,-500.0,0.00028309,2]
[426815279,1782876638000,-500.0,0.00028309,2]
[426815289,1782876638000,-151.0,0.0002831,7]
[426815278,1782876638000,-500.0,0.00028309,2]
[426815280,1782876638000,-500.0,0.00028309,2]
[426815281,1782876638000,-500.0,0.00028309,2]
[426815290,1782876638000,-296.503352,0.0002831,7]
[426815285,1782876638000,-500.0,0.00028309,2]
[426815288,1782876638000,-335.115,0.0002831,2]
[426815308,1782876638000,-315.85,0.00029445,7]
[426815342,1782876638000,-3000.0,0.0002984,2]
[426815310,1782876638000,-315.85,0.00029445,7]
[426815332,1782876638000,-315.85,0.0002981,7]
[426815330,1782876638000,-315.85,0.0002981,7]
[426815333,1782876638000,-3000.0,0.0002982,2]
[426815334,1782876638000,-3000.0,0.0002983,2]
[426815331,1782876638000,-315.85,0.0002981,7]
[426815346,1782876638000,-151.0,0.0002985,7]
[426815336,1782876638000,-151.0,0.0002983,7]
[426815329,1782876638000,-315.85,0.0002981,7]
[426815337,1782876638000,-208.717221,0.0002983,7]
[426815335,1782876638000,-151.0,0.0002983,7]
[426815340,1782876638000,-315.85,0.0002983,7]
[426815343,1782876638000,-186.0,0.00029842,2]
[426815341,1782876638000,-315.85,0.0002983,7]
[426815344,1782876638000,-3000.0,0.0002985,2]
[426815345,1782876638000,-151.0,0.0002985,7]
[426815309,1782876638000,-315.85,0.00029445,7]
[426815339,1782876638000,-315.85,0.0002983,7]
[426815327,1782876638000,-151.0,0.0002981,7]
[426815338,1782876638000,-315.85,0.0002983,7]
[426815323,1782876638000,-395.392665,0.00029684,2]
[426815307,1782876638000,-1122.10468584,0.00029445,12]
[426815328,1782876638000,-151.0,0.0002981,7]
[426815305,1782876638000,-160.0,0.00029388,3]
[426815303,1782876638000,-151.0,0.00029,2]
[426815304,1782876638000,-701.0,0.00029,2]
[426815311,1782876638000,-315.85,0.00029445,7]
[426815312,1782876638000,-16168.39595235,0.000295,2]
[426815316,1782876638000,-315.85,0.000295,7]
[426815306,1782876638000,-3000.63023335,0.00029445,12]
[426815322,1782876638000,-364.1,0.0002967,3]
[426815317,1782876638000,-315.85,0.000295,7]
[426815325,1782876638000,-3000.0,0.0002981,2]
[426815326,1782876638000,-151.0,0.0002981,7]
[426815320,1782876638000,-213.4648,0.000296,3]
[426815319,1782876638000,-315.85,0.000295,7]
[426815324,1782876638000,-3000.0,0.000298,2]
[426815318,1782876638000,-315.85,0.000295,7]
[426815321,1782876638000,-728.22,0.0002967,3]
[426815386,1782876639000,-500.0,0.00029934,7]
[426815396,1782876639000,-500.0,0.00029999,7]
[426815385,1782876639000,-5341.068491,0.0002993,2]
[426815382,1782876639000,-3000.0,0.000299,2]
[426815373,1782876639000,-365.31321824,0.00029897,2]
[426815384,1782876639000,-3000.0,0.0002992,2]
[426815376,1782876639000,-288.83877416,0.00029897,2]
[426815375,1782876639000,-252.73392739,0.00029897,2]
[426815387,1782876639000,-500.0,0.00029934,7]
[426815405,1782876639000,-500.0,0.00029999,7]
[426815381,1782876639000,-500.0,0.00029899,7]
[426815388,1782876639000,-280.03822742,0.00029935,7]
[426815397,1782876639000,-500.0,0.00029999,7]
[426815391,1782876639000,-632.95867382,0.00029998,7]
[426815389,1782876639000,-272.01796011,0.00029938,7]
[426815390,1782876639000,-500.0,0.00029998,7]
[426815394,1782876639000,-500.0,0.00029999,7]
[426815393,1782876639000,-500.0,0.00029998,7]
[426815395,1782876639000,-500.0,0.00029999,7]
[426815399,1782876639000,-500.0,0.00029999,7]
[426815398,1782876639000,-500.0,0.00029999,7]
[426815400,1782876639000,-500.0,0.00029999,7]
[426815401,1782876639000,-500.0,0.00029999,7]
[426815404,1782876639000,-500.0,0.00029999,7]
[426815378,1782876639000,-500.0,0.00029898,7]
[426815392,1782876639000,-500.0,0.00029998,7]
[426815383,1782876639000,-3000.0,0.0002991,2]
[426815351,1782876639000,-500.0,0.00029863,7]
[426815379,1782876639000,-500.0,0.00029898,7]
[426815347,1782876639000,-3000.0,0.0002986,2]
[426815348,1782876639000,-507.0,0.00029863,7]
[426815352,1782876639000,-500.0,0.00029863,7]
[426815350,1782876639000,-500.0,0.00029863,7]
[426815349,1782876639000,-500.0,0.00029863,7]
[426815353,1782876639000,-541.6,0.00029863,7]
[426815355,1782876639000,-169.28448514,0.00029863,7]
[426815356,1782876639000,-507.0,0.00029863,7]
[426815359,1782876639000,-500.0,0.00029863,7]
[426815354,1782876639000,-500.0,0.00029863,7]
[426815358,1782876639000,-500.0,0.00029863,7]
[426815357,1782876639000,-500.0,0.00029863,7]
[426815380,1782876639000,-500.0,0.00029898,7]
[426815361,1782876639000,-500.0,0.00029863,7]
[426815371,1782876639000,-561.88978816,0.00029897,2]
[426815362,1782876639000,-3000.0,0.0002987,2]
[426815364,1782876639000,-3000.0,0.0002988,2]
[426815369,1782876639000,-213.16134646,0.00029897,2]
[426815367,1782876639000,-310.16216324,0.00029897,2]
[426815363,1782876639000,-150.177,0.00029878,2]
[426815365,1782876639000,-3000.0,0.0002989,2]
[426815366,1782876639000,-312.16099342,0.00029897,2]
[426815368,1782876639000,-558.29189384,0.00029897,2]
[426815370,1782876639000,-383.69042363,0.00029897,2]
[426815372,1782876639000,-300.57244303,0.00029897,2]
[426815374,1782876639000,-1064.74092558,0.00029897,2]
[426815360,1782876639000,-167.58,0.00029863,7]
[426815403,1782876639000,-500.0,0.00029999,7]
[426815377,1782876639000,-450.85927403,0.00029897,2]
[426815417,1782876639000,-500.0,0.00029999,7]
[426815441,1782876639000,-500.0,0.00029999,7]
[426815440,1782876639000,-609.48693004,0.00029999,7]
[426815442,1782876639000,-500.0,0.00029999,7]
[426815446,1782876639000,-500.0,0.00029999,7]
[426815456,1782876639000,-500.0,0.00029999,7]
[426815448,1782876639000,-500.0,0.00029999,7]
[426815447,1782876639000,-500.0,0.00029999,7]
[426815455,1782876639000,-500.0,0.00029999,7]
[426815445,1782876639000,-500.0,0.00029999,7]
[426815452,1782876639000,-500.0,0.00029999,7]
[426815454,1782876639000,-500.0,0.00029999,7]
[426815453,1782876639000,-500.0,0.00029999,7]
[426815437,1782876639000,-500.0,0.00029999,7]
[426815451,1782876639000,-500.0,0.00029999,7]
[426815458,1782876639000,-500.0,0.00029999,7]
[426815457,1782876639000,-541.14639851,0.00029999,7]
[426815460,1782876639000,-500.0,0.00029999,7]
[426815465,1782876639000,-500.0,0.00029999,7]
[426815464,1782876639000,-500.0,0.00029999,7]
[426815459,1782876639000,-500.0,0.00029999,7]
[426815466,1782876639000,-500.0,0.00029999,7]
[426815461,1782876639000,-500.0,0.00029999,7]
[426815467,1782876639000,-500.0,0.00029999,7]
[426815463,1782876639000,-500.0,0.00029999,7]
[426815462,1782876639000,-500.0,0.00029999,7]
[426815407,1782876639000,-500.0,0.00029999,7]
[426815450,1782876639000,-500.0,0.00029999,7]
[426815436,1782876639000,-500.0,0.00029999,7]
[426815449,1782876639000,-500.0,0.00029999,7]
[426815438,1782876639000,-500.0,0.00029999,7]
[426815406,1782876639000,-500.0,0.00029999,7]
[426815408,1782876639000,-500.0,0.00029999,7]
[426815411,1782876639000,-500.0,0.00029999,7]
[426815413,1782876639000,-500.0,0.00029999,7]
[426815410,1782876639000,-500.0,0.00029999,7]
[426815414,1782876639000,-500.0,0.00029999,7]
[426815439,1782876639000,-500.0,0.00029999,7]
[426815409,1782876639000,-500.0,0.00029999,7]
[426815412,1782876639000,-500.0,0.00029999,7]
[426815420,1782876639000,-500.0,0.00029999,7]
[426815419,1782876639000,-500.0,0.00029999,7]
[426815430,1782876639000,-500.0,0.00029999,7]
[426815421,1782876639000,-500.0,0.00029999,7]
[426815429,1782876639000,-500.0,0.00029999,7]
[426815415,1782876639000,-524.46565082,0.00029999,7]
[426815422,1782876639000,-500.0,0.00029999,7]
[426815423,1782876639000,-500.0,0.00029999,7]
[426815431,1782876639000,-500.0,0.00029999,7]
[426815434,1782876639000,-500.0,0.00029999,7]
[426815433,1782876639000,-500.0,0.00029999,7]
[426815432,1782876639000,-500.0,0.00029999,7]
[426815443,1782876639000,-500.0,0.00029999,7]
[426815444,1782876639000,-500.0,0.00029999,7]
[426815428,1782876639000,-500.0,0.00029999,7]
[426815427,1782876639000,-400.38134528,0.00029999,7]
[426815426,1782876639000,-500.0,0.00029999,7]
[426815425,1782876639000,-500.0,0.00029999,7]
[426815424,1782876639000,-500.0,0.00029999,7]
[426815473,1782876640000,-450.71451496,0.00029999,7]
[426815476,1782876640000,-657.9,0.00029999,7]
[426815479,1782876640000,-657.9,0.00029999,7]
[426815474,1782876640000,-507.0,0.00029999,7]
[426815471,1782876640000,-500.0,0.00029999,7]
[426815483,1782876640000,-657.9,0.00029999,7]
[426815475,1782876640000,-657.9,0.00029999,7]
[426815469,1782876640000,-500.0,0.00029999,7]
[426815480,1782876640000,-657.9,0.00029999,7]
[426815477,1782876640000,-657.9,0.00029999,7]
[426815478,1782876640000,-657.9,0.00029999,7]
[426815470,1782876640000,-500.0,0.00029999,7]
[426815472,1782876640000,-500.0,0.00029999,7]
[426815468,1782876640000,-500.0,0.00029999,7]
[426815482,1782876640000,-657.9,0.00029999,7]
[426815481,1782876640000,-657.9,0.00029999,7]
[426815493,1782876640000,-487.0,0.00029999,2]
[426815501,1782876640000,-1900.0,0.0003,2]
[426815486,1782876640000,-500.0,0.00029999,7]
[426815503,1782876640000,-2606.5615857,0.0003,20]
[426815504,1782876640000,-1056.851851,0.0003,20]
[426815502,1782876640000,-9869.98720412,0.0003,20]
[426815497,1782876640000,-487.0,0.00029999,2]
[426815498,1782876640000,-528.66,0.00029999,2]
[426815496,1782876640000,-487.0,0.00029999,2]
[426815495,1782876640000,-487.0,0.00029999,2]
[426815499,1782876640000,-80629.71460217,0.0003,2]
[426815491,1782876640000,-487.0,0.00029999,2]
[426815487,1782876640000,-500.0,0.00029999,7]
[426815489,1782876640000,-500.0,0.00029999,7]
[426815492,1782876640000,-487.0,0.00029999,2]
[426815488,1782876640000,-500.0,0.00029999,7]
[426815484,1782876640000,-500.0,0.00029999,7]
[426815485,1782876640000,-500.0,0.00029999,7]
[426815490,1782876640000,-500.0,0.00029999,7]
[426815494,1782876640000,-487.0,0.00029999,2]
[426815516,1782876646000,-1836.76884121,0.0003,20]
[426815515,1782876646000,-1177.82,0.0003,20]
[426815522,1782876864000,-4150.52979795,0.00023578,2]
[426815523,1782876864000,-1305.92338721,0.00023816,2]
[426815531,1782876970000,1000.0,0.0002757,30]
[426815533,1782877056000,-507.0,0.00023342,2]
[426815534,1782877066000,-167.7,0.00023342,2]
[426815535,1782877077000,-167.7,0.00023342,2]
[426815536,1782877088000,-76.85623295,0.00023342,2]
[426815538,1782877141000,-507.0,0.00023578,2]
[426815539,1782877152000,-507.0,0.00024057,2]
[426815540,1782877163000,-507.0,0.00024057,2]
[426815546,1782877747000,-191.46835899,0.00023578,2]
[426815547,1782877800000,-12.2349548,0.00024057,2]
[426815592,1782877832000,-998.91517894,0.00028405,2]
[426815594,1782877832000,-1559.24416213,0.00028405,2]
[426815591,1782877832000,-300.0,0.00028404,2]
[426815585,1782877832000,-179.84670022,0.000279,2]
[426815587,1782877832000,-165.0,0.00028,2]
[426815570,1782877832000,-248.14390705,0.00024292,7]
[426815589,1782877832000,-631.0,0.00028,2]
[426815581,1782877832000,-406.63613293,0.00027,7]
[426815572,1782877832000,-319.9042,0.000243,2]
[426815576,1782877832000,-1549.26000539,0.00026984,2]
[426815574,1782877832000,-271.09075528,0.000255,7]
[426815579,1782877832000,-188.65059041,0.00026985,2]
[426815583,1782877832000,-228.9609449,0.0002772,2]
[426815598,1782877832000,-11.01886343,0.00029,2]
[426815620,1782877832000,-160.76358678,0.00029899,2]
[426815610,1782877832000,-414.85934821,0.00029897,2]
[426815616,1782877832000,-289.32357441,0.00029897,2]
[426815622,1782877832000,-58.43501825,0.00029999,7]
[426815619,1782877832000,-184.80139497,0.00029897,2]
[426815612,1782877832000,-320.47326402,0.00029897,2]
[426815596,1782877832000,-619.98113657,0.00029,2]
[426815614,1782877832000,-365.88890373,0.00029897,2]
[426815608,1782877832000,-521.0,0.00029863,7]
[426815604,1782877832000,-500.0,0.00029863,7]
[426815600,1782877832000,-1422.0,0.00029855,2]
[426815602,1782877832000,-186.0,0.00029855,2]
[426815606,1782877832000,-500.0,0.00029863,7]
[426815702,1782877844000,-500.0,0.0003,2]
[426815701,1782877844000,-15019.79262,0.0003,5]
[426815703,1782877844000,-151.0,0.0003,2]
[426815718,1782877844000,-151.0,0.0003,2]
[426815708,1782877844000,-151.0,0.0003,2]
[426815707,1782877844000,-151.0,0.0003,2]
[426815711,1782877844000,-151.0,0.0003,2]
[426815696,1782877844000,-154.24,0.0003,2]
[426815713,1782877844000,-151.0,0.0003,2]
[426815710,1782877844000,-151.0,0.0003,2]
[426815712,1782877844000,-151.0,0.0003,2]
[426815717,1782877844000,-151.0,0.0003,2]
[426815714,1782877844000,-151.0,0.0003,2]
[426815709,1782877844000,-151.0,0.0003,2]
[426815699,1782877844000,-1044.00466807,0.0003,10]
[426815706,1782877844000,-151.0,0.0003,2]
[426815705,1782877844000,-165.625,0.0003,3]
[426815700,1782877844000,-14250.65581966,0.0003,7]
[426815694,1782877844000,-154.24,0.0003,2]
[426815704,1782877844000,-235.459,0.0003,2]
[426815716,1782877844000,-151.0,0.0003,2]
[426815690,1782877844000,-154.24,0.0003,2]
[426815692,1782877844000,-154.24,0.0003,2]
[426815687,1782877844000,-321.0,0.0003,2]
[426815685,1782877844000,-380.48576344,0.0003,2]
[426815688,1782877844000,-154.24,0.0003,2]
[426815686,1782877844000,-272.69516672,0.0003,2]
[426815684,1782877844000,-1000.0,0.0003,3]
[426815683,1782877844000,-6175.66138739,0.0003,20]
[426815682,1782877844000,-109.26498175,0.00029999,7]
[426815697,1782877844000,-154.24,0.0003,2]
[426815715,1782877844000,-151.0,0.0003,2]
[426815698,1782877844000,-154.24,0.0003,2]
[426815721,1782877844000,-151.0,0.0003,2]
[426815752,1782877844000,-151.0,0.0003,5]
[426815748,1782877844000,-151.0,0.0003,5]
[426815750,1782877844000,-151.0,0.0003,5]
[426815749,1782877844000,-151.0,0.0003,5]
[426815745,1782877844000,-151.0,0.0003,3]
[426815747,1782877844000,-151.0,0.0003,5]
[426815751,1782877844000,-151.0,0.0003,5]
[426815746,1782877844000,-297.96,0.0003,3]
[426815744,1782877844000,-151.0,0.0003,3]
[426815736,1782877844000,-151.0,0.0003,3]
[426815739,1782877844000,-151.0,0.0003,3]
[426815740,1782877844000,-151.0,0.0003,3]
[426815737,1782877844000,-151.0,0.0003,3]
[426815741,1782877844000,-151.0,0.0003,3]
[426815735,1782877844000,-151.0,0.0003,3]
[426815738,1782877844000,-151.0,0.0003,3]
[426815733,1782877844000,-151.0,0.0003,3]
[426815743,1782877844000,-151.0,0.0003,3]
[426815723,1782877844000,-151.0,0.0003,2]
[426815722,1782877844000,-151.0,0.0003,2]
[426815720,1782877844000,-151.0,0.0003,2]
[426815730,1782877844000,-151.0,0.0003,2]
[426815724,1782877844000,-151.0,0.0003,2]
[426815728,1782877844000,-151.0,0.0003,2]
[426815725,1782877844000,-151.0,0.0003,2]
[426815729,1782877844000,-151.0,0.0003,2]
[426815726,1782877844000,-151.0,0.0003,2]
[426815742,1782877844000,-151.0,0.0003,3]
[426815734,1782877844000,-151.0,0.0003,3]
[426815719,1782877844000,-151.0,0.0003,2]
[426815732,1782877844000,-151.0,0.0003,3]
[426815727,1782877844000,-151.0,0.0003,2]
[426815731,1782877844000,-244.934,0.0003,2]
[426815753,1782877845000,-151.0,0.0003,5]
[426815755,1782877845000,-151.0,0.0003,5]
[426815757,1782877845000,-1838.557443,0.0003,5]
[426815756,1782877845000,-248.973,0.0003,5]
[426815758,1782877845000,-631.0,0.0003,2]
[426815760,1782877845000,-286.77,0.00030015,15]
[426815759,1782877845000,-657.9,0.00030014,7]
[426815764,1782877845000,-530.67613764,0.00030026,2]
[426815754,1782877845000,-151.0,0.0003,5]
[426815763,1782877845000,-441.053256,0.00030025,2]
[426815762,1782877845000,-1000.0,0.0003002,5]
[426815765,1782877845000,-369.49753274,0.00030026,2]
[426815766,1782877845000,-3544.68500672,0.00030026,2]
[426815761,1782877845000,-598.05939059,0.00030019,7]
[426815780,1782877936000,5000.0,0.00029986,30]
[426815779,1782877936000,5000.0,0.00029986,30]
[426815781,1782877937000,783.76,0.00029986,30]
[426815797,1782878368000,-530.67613764,0.0002079,2]
[426815798,1782878379000,-530.67613764,0.0002079,2]
[426815799,1782878390000,-441.053256,0.0002079,2]
[426815802,1782878402000,-441.053256,0.0002079,2]
[426815803,1782878412000,-1000.0,0.0002079,2]
[426815804,1782878423000,-1000.0,0.0002079,2]
[426815805,1782878434000,-598.05939059,0.0002079,2]
[426815806,1782878446000,-458.48182213,0.0002079,2]
[426815807,1782878498000,-698.46835899,0.0002079,2]
[426815808,1782878509000,-151.0,0.00020166,2]
[426815809,1782878541000,-793.86618516,0.0002079,2]
[426815810,1782878553000,-657.9,0.0002079,2]
[426815811,1782878563000,-1535.09485041,0.0002079,2]
[426815812,1782878581000,-793.86618516,0.0002079,2]
[426815815,1782878693000,996.84759193,0.00029225,30]
[426815817,1782878722000,-151.0,0.00020166,2]